[Event "NJSK 2024 C"]
[Site "Groningen, Netherlands"]
[Date "2024.04.30"]
[Round "5.8"]
[White "Tetova, Amir"]
[Black "Koppenens, Oscar"]
[Result "1-0"]
[TimeControl "90min/40moves + 30min + 30sec/move"]
[WhiteElo "1767"]
[BlackElo "1893"]

1. d4 {[%clk 01:30:59]} Nf6 {[%clk 01:30:55]} {[%emt 00:00:05]} 2. Nf3 {[%clk
01:31:25]} {[%emt 00:00:04]} g6 {[%clk 01:31:23]} {[%emt 00:00:03]} 3. Bf4
{[%clk 01:31:50]} {[%emt 00:00:04]} Bg7 {[%clk 01:31:48]} {[%emt 00:00:05]} 4.
e3 {[%clk 01:32:17]} {[%emt 00:00:04]} O-O {[%clk 01:31:43]} {[%emt 00:00:35]}
5. Be2 {[%clk 01:32:41]} {[%emt 00:00:05]} d5 {[%clk 01:31:42]} {[%emt
00:00:31]} 6. O-O {[%clk 01:32:53]} {[%emt 00:00:18]} c5 {[%clk 01:30:43]}
{[%emt 00:01:29]} 7. c3 {[%clk 01:33:17]} {[%emt 00:00:06]} Qb6 {[%clk
01:30:33]} {[%emt 00:00:38]} 8. Qb3 {[%clk 01:33:22]} {[%emt 00:00:27]} c4
{[%clk 01:30:50]} {[%emt 00:00:14]} 9. Qxb6 {[%clk 01:33:32]} {[%emt 00:00:20]}
axb6 {[%clk 01:31:15]} {[%emt 00:00:04]} 10. Na3 {[%clk 01:31:26]} {[%emt
00:02:37]} Nc6 {[%clk 01:26:33]} {[%emt 00:05:12]} 11. h3 {[%clk 01:28:59]}
{[%emt 00:02:57]} Nd7 {[%clk 01:24:30]} {[%emt 00:02:32]} 12. Bh2 {[%clk
01:27:58]} {[%emt 00:01:31]} Ra5 {[%clk 01:20:35]} {[%emt 00:04:26]} 13. Bc7
{[%clk 01:24:21]} {[%emt 00:04:07]} e5 {[%clk 01:17:24]} {[%emt 00:03:40]} 14.
dxe5 {[%clk 01:19:02]} {[%emt 00:05:50]} Ncxe5 {[%clk 01:17:08]} {[%emt
00:00:45]} 15. Nd4 {[%clk 01:18:40]} {[%emt 00:00:51]} Re8 {[%clk 01:15:33]}
{[%emt 00:02:05]} 16. Rfd1 {[%clk 01:14:41]} {[%emt 00:04:30]} Bf8 {[%clk
01:12:55]} {[%emt 00:03:08]} 17. Ndb5 {[%clk 01:08:19]} {[%emt 00:06:52]} Bxa3
{[%clk 01:11:53]} {[%emt 00:01:32]} 18. Nxa3 {[%clk 01:08:37]} {[%emt
00:00:12]} Re6 {[%clk 01:11:34]} {[%emt 00:00:49]} 19. f4 {[%clk 01:07:00]}
{[%emt 00:02:08]} Nc6 {[%clk 01:09:36]} {[%emt 00:02:26]} 20. Kf2 {[%clk
01:07:17]} {[%emt 00:00:14]} Ne7 {[%clk 01:07:09]} {[%emt 00:02:56]} 21. Nc2
{[%clk 01:06:57]} {[%emt 00:00:50]} Rc6 {[%clk 00:58:54]} {[%emt 00:08:45]} 22.
Bd8 {[%clk 01:07:14]} {[%emt 00:00:15]} Nf5 {[%clk 00:48:02]} {[%emt 00:11:21]}
23. g4 {[%clk 01:07:23]} {[%emt 00:00:22]} Nd6 {[%clk 00:48:13]} {[%emt
00:00:19]} 24. Nd4 {[%clk 01:07:32]} {[%emt 00:00:19]} Ne4+ {[%clk 00:47:52]}
{[%emt 00:00:52]} 25. Kf3 {[%clk 01:07:23]} {[%emt 00:00:39]} Rcc5 {[%clk
00:46:21]} {[%emt 00:01:44]} 26. b4 {[%clk 01:06:33]} {[%emt 00:01:37]} cxb3
{[%clk 00:46:41]} {[%emt 00:00:10]} 27. Nxb3 {[%clk 01:06:57]} {[%emt
00:00:06]} Nxc3 {[%clk 00:45:51]} {[%emt 00:01:21]} 28. Nxc5 {[%clk 01:06:41]}
{[%emt 00:00:46]} Nxd1 {[%clk 00:43:19]} {[%emt 00:03:01]} 29. Nxd7 {[%clk
01:07:00]} {[%emt 00:00:12]} Bxd7 {[%clk 00:43:42]} {[%emt 00:00:06]} 30. Rxd1
{[%clk 01:07:20]} {[%emt 00:00:09]} Rxa2 {[%emt 00:00:35]} 31. Rb1 {[%clk
01:07:00]} {[%emt 00:00:13]} Bc6 {[%clk 00:43:48]} {[%emt 00:00:58]} 32. Bb5
{[%clk 01:00:15]} {[%emt 00:07:14]} Ra5 {[%clk 00:41:59]} {[%emt 00:02:18]} 33.
Bxc6 {[%clk 01:00:28]} {[%emt 00:00:17]} bxc6 {[%emt 00:00:07]} 34. Rxb6 {[%clk
01:00:48]} {[%emt 00:00:09]} Ra8 {[%clk 00:42:36]} {[%emt 00:00:17]} 35. Bf6
{[%clk 01:01:04]} {[%emt 00:00:12]} Rc8 {[%clk 00:43:02]} {[%emt 00:00:05]} 36.
Ke2 {[%clk 01:01:05]} {[%emt 00:00:29]} Kf8 {[%clk 00:43:00]} {[%emt 00:00:32]}
37. Kd3 {[%clk 01:01:20]} {[%emt 00:00:16]} Ke8 {[%clk 00:42:57]} {[%emt
00:00:33]} 38. g5 {[%clk 01:01:27]} {[%emt 00:00:22]} Kd7 {[%clk 00:43:14]}
{[%emt 00:00:14]} 39. Rb7+ {[%clk 01:01:51]} {[%emt 00:00:07]} Rc7 {[%clk
00:41:32]} {[%emt 00:02:11]} 40. Rb6 {[%clk 01:02:16]} {[%emt 00:00:04]} Ra7
{[%clk 00:41:28]} {[%emt 00:00:35]} 41. Rb8 {[%clk 01:02:26]} {[%emt 00:00:20]}
Ra3+ {[%clk 00:39:20]} {[%emt 00:02:38]} 42. Bc3 {[%clk 01:02:48]} {[%emt
00:00:07]} c5 {[%clk 00:37:53]} {[%emt 00:01:58]} 43. Rb7+ {[%clk 01:02:27]}
{[%emt 00:00:51]} Ke6 {[%clk 00:38:12]} {[%emt 00:00:10]} 44. Rc7 {[%clk
01:02:30]} {[%emt 00:00:27]} c4+ {[%clk 00:37:21]} {[%emt 00:01:22]} 45. Kd4
{[%clk 01:02:35]} {[%emt 00:00:25]} Rb3 {[%clk 00:37:38]} {[%emt 00:00:13]} 46.
Rc6+ {[%clk 01:01:39]} {[%emt 00:01:27]} Kd7 {[%clk 00:37:44]} {[%emt
00:00:23]} 47. Rc5 {[%clk 01:02:01]} {[%emt 00:00:07]} Ke6 {[%clk 00:38:05]}
{[%emt 00:00:09]} 48. Rxd5 {[%clk 01:02:09]} {[%emt 00:00:22]} f6 {[%clk
00:37:35]} {[%emt 00:01:00]} 49. Rc5 {[%clk 01:02:03]} {[%emt 00:00:37]} fxg5
{[%clk 00:37:55]} {[%emt 00:00:10]} 50. Rxg5 {[%clk 01:02:14]} {[%emt
00:00:18]} Rb1 {[%clk 00:38:16]} {[%emt 00:00:10]} 51. Kxc4 {[%clk 01:02:36]}
{[%emt 00:00:09]} Rh1 {[%clk 00:38:29]} {[%emt 00:00:16]} 52. Rg3 {[%clk
01:03:01]} {[%emt 00:00:05]} Kf5 {[%clk 00:38:48]} {[%emt 00:00:11]} 53. Kd5
{[%clk 01:02:32]} {[%emt 00:00:59]} Rd1+ {[%clk 00:38:57]} {[%emt 00:00:21]} 54.
Bd4 {[%clk 01:02:59]} {[%emt 00:00:03]} h6 {[%clk 00:39:18]} {[%emt 00:00:09]}
55. Rg4 {[%clk 01:02:43]} {[%emt 00:00:45]} Re1 {[%clk 00:39:31]} {[%emt
00:00:18]} 56. Rg2 {[%clk 01:01:48]} {[%emt 00:01:25]} Rh1 {[%clk 00:39:31]}
{[%emt 00:00:31]} 57. Rf2 {[%clk 00:59:54]} {[%emt 00:02:24]} Rxh3 {[%clk
00:39:41]} {[%emt 00:00:19]} 58. e4 {[%clk 01:00:21]} {[%emt 00:00:03]} Kg4
{[%clk 00:40:06]} {[%emt 00:00:05]} 59. e5 {[%clk 01:00:01]} {[%emt 00:00:50]}
Ra3 {[%clk 00:38:39]} {[%emt 00:01:57]} 60. e6 {[%clk 01:00:20]} {[%emt
00:00:12]} Kf5 {[%clk 00:38:11]} {[%emt 00:00:57]} 61. e7 {[%clk 01:00:19]}
{[%emt 00:00:30]} Ra8 {[%clk 00:38:38]} {[%emt 00:00:04]} 62. Kd6 {[%clk
01:00:24]} {[%emt 00:00:25]} Rb8 {[%clk 00:38:05]} {[%emt 00:01:02]} 63. Re2
{[%clk 01:00:44]} {[%emt 00:00:10]} Kxf4 {[%clk 00:38:22]} {[%emt 00:00:14]} 64.
Rf2+ {[%clk 01:00:39]} {[%emt 00:00:35]} Kg4 {[%clk 00:36:45]} {[%emt
00:02:06]} 65. Rf8 {[%clk 01:01:03]} {[%emt 00:00:07]} Rb4 {[%clk 00:37:10]}
{[%emt 00:00:05]} 66. e8=Q {[%clk 01:01:18]} {[%emt 00:00:16]} Rxd4+ {[%clk
00:37:35]} {[%emt 00:00:05]} 67. Kc5 {[%clk 01:01:45]} {[%emt 00:00:04]} Rd2
{[%clk 00:37:00]} {[%emt 00:01:04]} 68. Qxg6+ {[%clk 01:02:11]} {[%emt
00:00:04]} Kh3 {[%emt 00:00:15]} 69. Rf3+ {[%clk 01:02:35]} Kh4 {[%clk
00:37:38]} {[%emt 00:00:13]} 70. Qg3+ {[%clk 01:03:01]} {[%emt 00:00:04]} Kh5
{[%clk 00:37:57]} {[%emt 00:00:11]} 71. Rf5 {[%clk 01:03:29]} {[%emt 00:00:02]}
1-0

[Event "NJSK 2024 C"]
[Site "Groningen, Netherlands"]
[Date "2024.04.30"]
[Round "5.9"]
[White "Roorda, Cas"]
[Black "De Wit, Evan"]
[Result "1/2-1/2"]
[TimeControl "90min/40moves + 30min + 30sec/move"]
[WhiteElo "1828"]
[BlackElo "1769"]

1. e4 {[%clk 01:30:58]} {[%emt 00:00:02]} c5 {[%emt 00:00:07]} 2. Nf3 {[%clk
01:31:22]} Nc6 {[%clk 01:31:21]} {[%emt 00:00:08]} 3. d4 {[%clk 01:31:49]}
{[%emt 00:00:04]} cxd4 {[%clk 01:31:46]} {[%emt 00:00:05]} 4. Nxd4 {[%clk
01:32:16]} {[%emt 00:00:03]} Nf6 {[%clk 01:32:08]} {[%emt 00:00:07]} 5. Nc3
{[%clk 01:32:40]} {[%emt 00:00:06]} e5 {[%clk 01:32:34]} {[%emt 00:00:04]} 6.
Ndb5 {[%clk 01:33:08]} {[%emt 00:00:02]} d6 {[%clk 01:32:57]} {[%emt 00:00:08]}
7. Nd5 {[%clk 01:33:34]} {[%emt 00:00:04]} Nxd5 {[%clk 01:33:20]} {[%emt
00:00:07]} 8. exd5 {[%clk 01:34:02]} {[%emt 00:00:03]} Nb8 {[%clk 01:33:36]}
{[%emt 00:00:13]} 9. c4 {[%clk 01:34:28]} {[%emt 00:00:05]} Be7 {[%clk
01:33:44]} {[%emt 00:00:21]} 10. Bd3 {[%clk 01:34:46]} {[%emt 00:00:13]} a6
{[%clk 01:33:47]} {[%emt 00:00:27]} 11. Nc3 {[%clk 01:34:58]} {[%emt 00:00:17]}
O-O {[%clk 01:33:47]} {[%emt 00:00:31]} 12. O-O {[%clk 01:35:18]} {[%emt
00:00:10]} f5 {[%clk 01:33:56]} {[%emt 00:00:21]} 13. f3 {[%clk 01:35:11]}
{[%emt 00:00:37]} Nd7 {[%clk 01:32:43]} {[%emt 00:01:43]} 14. Kh1 {[%clk
01:35:26]} {[%emt 00:00:15]} a5 {[%clk 01:31:45]} {[%emt 00:01:27]} 15. Be3
{[%clk 01:31:34]} {[%emt 00:04:22]} Bg5 {[%clk 01:28:45]} {[%emt 00:03:30]} 16.
Bg1 {[%clk 01:31:08]} {[%emt 00:00:57]} Bf4 {[%clk 01:25:30]} {[%emt 00:03:45]}
17. a3 {[%clk 01:19:16]} {[%emt 00:12:22]} Qh4 {[%clk 01:16:14]} {[%emt
00:09:45]} 18. Ne2 {[%clk 01:07:10]} {[%emt 00:12:36]} Bg5 {[%clk 01:10:55]}
{[%emt 00:05:48]} 19. b4 {[%clk 00:56:05]} {[%emt 00:11:36]} e4 {[%clk
01:08:18]} {[%emt 00:03:07]} 20. fxe4 {[%clk 00:46:55]} {[%emt 00:09:41]} Bf6
{[%clk 00:58:08]} {[%emt 00:10:39]} 21. Rb1 {[%clk 00:40:44]} {[%emt 00:06:41]}
fxe4 {[%clk 00:57:33]} {[%emt 00:01:04]} 22. Rf4 {[%clk 00:38:11]} {[%emt
00:03:04]} exd3 {[%clk 00:39:24]} {[%emt 00:18:39]} 23. Rxh4 {[%clk 00:38:23]}
{[%emt 00:00:18]} dxe2 {[%clk 00:39:48]} {[%emt 00:00:06]} 24. Qxe2 {[%clk
00:38:51]} {[%emt 00:00:03]} Bxh4 {[%clk 00:39:57]} {[%emt 00:00:20]} 25. Qe6+
{[%emt 00:04:42]} Kh8 {[%clk 00:40:15]} {[%emt 00:00:09]} 26. Qxd6 {[%clk
00:33:29]} {[%emt 00:01:43]} axb4 {[%clk 00:38:05]} {[%emt 00:02:40]} 27. axb4
{[%clk 00:32:22]} {[%emt 00:01:37]} Ra6 {[%clk 00:38:26]} {[%emt 00:00:09]} 28.
Qc7 {[%clk 00:32:30]} {[%emt 00:00:23]} Rg6 {[%clk 00:38:48]} {[%emt 00:00:07]}
29. Qa5 {[%clk 00:31:21]} {[%emt 00:01:39]} Ne5 {[%clk 00:35:13]} {[%emt
00:04:03]} 30. Qc5 {[%clk 00:24:44]} {[%emt 00:07:09]} Re8 {[%clk 00:32:42]}
{[%emt 00:03:01]} 31. Qe3 {[%clk 00:18:12]} {[%emt 00:07:02]} Bd7 {[%clk
00:31:18]} {[%emt 00:01:55]} 32. Rf1 {[%clk 00:11:24]} {[%emt 00:07:18]} Bf6
{[%clk 00:29:59]} {[%emt 00:01:49]} 33. Qb3 {[%clk 00:10:40]} {[%emt 00:01:14]}
Rc8 {[%clk 00:27:54]} {[%emt 00:02:34]} 34. Rc1 {[%clk 00:08:58]} {[%emt
00:02:12]} Bf5 {[%clk 00:26:28]} {[%emt 00:01:56]} 35. Re1 {[%clk 00:07:29]}
{[%emt 00:01:59]} Bd3 {[%clk 00:24:37]} {[%emt 00:02:20]} 36. c5 {[%clk
00:05:58]} {[%emt 00:02:03]} Bc4 {[%clk 00:23:58]} {[%emt 00:01:08]} 37. Qd1
{[%clk 00:06:08]} {[%emt 00:00:20]} Nd3 {[%clk 00:19:36]} {[%emt 00:04:52]} 38.
Re4 {[%clk 00:05:54]} {[%emt 00:00:44]} Bb5 {[%clk 00:11:21]} {[%emt 00:08:45]}
39. Qd2 {[%clk 00:04:58]} {[%emt 00:01:26]} Ne5 {[%clk 00:10:29]} {[%emt
00:01:22]} 40. Qe1 {[%clk 00:03:55]} {[%emt 00:01:34]} Re8 {[%clk 00:09:29]}
{[%emt 00:01:29]} 41. Bd4 {[%clk 00:03:25]} {[%emt 00:01:00]} Rg5 {[%clk
00:09:20]} {[%emt 00:00:39]} 42. Be3 {[%clk 00:02:35]} {[%emt 00:01:20]} Rh5
{[%clk 00:08:35]} {[%emt 00:01:16]} 43. Bf4 {[%clk 00:02:29]} {[%emt 00:00:36]}
Rf5 {[%clk 00:08:15]} {[%emt 00:00:50]} 44. g3 {[%clk 00:01:39]} {[%emt
00:01:19]} Bd3 {[%clk 00:07:49]} {[%emt 00:00:56]} 45. Re3 {[%clk 00:01:52]}
{[%emt 00:00:17]} Bc4 {[%clk 00:07:32]} {[%emt 00:00:47]} 46. Qd2 {[%clk
00:01:55]} {[%emt 00:00:27]} Bg5 {[%clk 00:06:20]} {[%emt 00:01:43]} 47. Bxg5
{[%clk 00:01:51]} {[%emt 00:00:33]} Rxg5 {[%clk 00:06:21]} {[%emt 00:00:29]} 48.
Qd4 {[%clk 00:02:06]} {[%emt 00:00:15]} h6 {[%clk 00:06:08]} {[%emt 00:00:43]}
49. Rxe5 {[%clk 00:01:19]} {[%emt 00:01:18]} Rgxe5 {[%clk 00:06:24]} {[%emt
00:00:14]} 50. Qxc4 {[%clk 00:01:43]} {[%emt 00:00:05]} Re2 {[%clk 00:06:27]}
{[%emt 00:00:27]} 51. Qd4 {[%clk 00:00:41]} {[%emt 00:01:32]} Rc2 {[%clk
00:06:16]} {[%emt 00:00:41]} 52. Qd1 {[%clk 00:00:32]} {[%emt 00:00:40]} Ree2
{[%clk 00:06:25]} {[%emt 00:00:21]} 53. Qf1 {[%clk 00:00:44]} {[%emt 00:00:18]}
Rxh2+ {[%clk 00:06:21]} {[%emt 00:00:33]} 54. Kg1 {[%clk 00:01:10]} {[%emt
00:00:04]} Rhd2 {[%clk 00:05:43]} {[%emt 00:01:07]} 55. d6 {[%clk 00:00:44]}
{[%emt 00:00:58]} Rd5 {[%clk 00:04:45]} {[%emt 00:01:27]} 56. Qf8+ {[%clk
00:00:33]} {[%emt 00:00:41]} 1/2-1/2

[Event "NJSK 2024 C"]
[Site "Groningen, Netherlands"]
[Date "2024.04.30"]
[Round "5.11"]
[White "Haque, Nishaaz"]
[Black "Guillaumond, Matthieu"]
[Result "0-1"]
[TimeControl "90min/40moves + 30min + 30sec/move"]
[WhiteElo "1803"]
[BlackElo "1945"]

1. d4 {[%clk 01:30:59]} Nf6 {[%clk 01:29:07]} {[%emt 00:01:54]} 2. Nf3 {[%clk
01:31:21]} {[%emt 00:00:07]} g6 {[%clk 01:29:24]} {[%emt 00:00:14]} 3. e3
{[%clk 01:31:34]} {[%emt 00:00:18]} Bg7 {[%clk 01:29:42]} {[%emt 00:00:10]} 4.
Bd3 {[%clk 01:31:58]} {[%emt 00:00:06]} O-O {[%clk 01:30:01]} {[%emt 00:00:12]}
5. b3 {[%clk 01:32:13]} {[%emt 00:00:14]} c5 {[%clk 01:28:40]} {[%emt
00:01:52]} 6. Bb2 {[%clk 01:31:11]} {[%emt 00:01:32]} d5 {[%clk 01:26:46]}
{[%emt 00:02:24]} 7. a3 {[%clk 01:30:15]} {[%emt 00:01:25]} b6 {[%clk
01:26:35]} {[%emt 00:00:42]} 8. c4 {[%clk 01:30:02]} {[%emt 00:00:42]} e6
{[%clk 01:24:49]} {[%emt 00:02:16]} 9. O-O {[%clk 01:29:39]} {[%emt 00:00:52]}
Ne4 {[%clk 01:24:37]} {[%emt 00:00:43]} 10. Ne1 {[%clk 01:22:14]} {[%emt
00:07:55]} Nd6 {[%clk 01:23:09]} {[%emt 00:01:58]} 11. Qc2 {[%clk 01:21:40]}
{[%emt 00:01:03]} Nd7 {[%clk 01:22:08]} {[%emt 00:01:31]} 12. Nd2 {[%clk
01:20:44]} {[%emt 00:01:26]} Bb7 {[%clk 01:19:57]} {[%emt 00:02:41]} 13. Nef3
{[%clk 01:17:58]} {[%emt 00:03:16]} Rc8 {[%clk 01:14:11]} {[%emt 00:06:17]} 14.
e4 {[%clk 01:15:24]} {[%emt 00:03:04]} cxd4 {[%clk 01:13:19]} {[%emt 00:01:22]}
15. Bxd4 {[%clk 01:13:43]} {[%emt 00:02:11]} e5 {[%clk 01:11:58]} {[%emt
00:01:51]} 16. Bc3 {[%clk 01:12:40]} {[%emt 00:01:33]} d4 {[%clk 01:11:18]}
{[%emt 00:01:09]} 17. Bb2 {[%clk 01:12:10]} {[%emt 00:01:01]} f5 {[%clk
01:10:54]} {[%emt 00:00:53]} 18. Ne1 {[%clk 01:09:56]} {[%emt 00:02:44]} Nc5
{[%clk 01:08:12]} {[%emt 00:03:13]} 19. f3 {[%clk 01:09:02]} {[%emt 00:01:22]}
Bh6 {[%clk 01:05:14]} {[%emt 00:03:29]} 20. exf5 {[%clk 01:06:33]} {[%emt
00:02:59]} gxf5 {[%clk 01:03:43]} {[%emt 00:02:02]} 21. Rd1 {[%clk 01:03:12]}
{[%emt 00:03:50]} e4 {[%clk 01:00:10]} {[%emt 00:04:03]} 22. Bxd4 {[%clk
01:02:29]} {[%emt 00:01:13]} exd3 {[%clk 01:00:04]} {[%emt 00:00:37]} 23. Nxd3
{[%clk 01:02:50]} {[%emt 00:00:08]} Nde4 {[%clk 00:57:19]} {[%emt 00:03:16]} 24.
Bxc5 {[%clk 01:01:05]} {[%emt 00:02:14]} Nxc5 {[%clk 00:57:24]} {[%emt
00:00:26]} 25. Nxc5 {[%clk 01:01:12]} {[%emt 00:00:22]} Qd4+ {[%clk 00:57:00]}
{[%emt 00:00:54]} 26. Kh1 {[%clk 01:01:28]} {[%emt 00:00:14]} Qxc5 {[%clk
00:57:23]} {[%emt 00:00:07]} 27. Nb1 {[%clk 01:00:41]} {[%emt 00:01:18]} b5
{[%clk 00:54:29]} {[%emt 00:03:24]} 28. Qe2 {[%clk 00:58:02]} {[%emt 00:03:08]}
Rfe8 {[%clk 00:53:25]} {[%emt 00:01:35]} 29. Qd3 {[%clk 00:56:21]} {[%emt
00:02:10]} bxc4 {[%clk 00:53:39]} {[%emt 00:00:17]} 30. bxc4 {[%clk 00:55:22]}
{[%emt 00:01:28]} Ba6 {[%clk 00:53:24]} {[%emt 00:00:45]} 31. Nd2 {[%clk
00:53:47]} {[%emt 00:02:05]} Rcd8 {[%clk 00:52:45]} {[%emt 00:01:10]} 0-1

[Event "NJSK 2024 C"]
[Site "Groningen, Netherlands"]
[Date "2024.04.30"]
[Round "5.12"]
[White "Klein Tuente, Sam"]
[Black "Etienne, Ghilon"]
[Result "1-0"]
[TimeControl "90min/40moves + 30min + 30sec/move"]
[WhiteElo "1732"]
[BlackElo "1793"]

1. e4 {[%clk 01:30:58]} {[%emt 00:00:01]} e5 {[%clk 01:30:58]} {[%emt
00:00:03]} 2. Nf3 {[%clk 01:31:22]} {[%emt 00:00:05]} Nc6 {[%clk 01:31:26]}
{[%emt 00:00:03]} 3. Bc4 {[%clk 01:31:47]} {[%emt 00:00:05]} Nf6 {[%clk
01:31:53]} {[%emt 00:00:03]} 4. d3 {[%clk 01:31:40]} {[%emt 00:00:37]} h6
{[%clk 01:32:20]} {[%emt 00:00:03]} 5. c3 {[%clk 01:31:51]} {[%emt 00:00:19]}
d6 {[%clk 01:32:46]} {[%emt 00:00:05]} 6. O-O {[%clk 01:28:23]} {[%emt
00:03:56]} g5 {[%clk 01:33:12]} {[%emt 00:00:05]} 7. Re1 {[%clk 01:24:58]}
{[%emt 00:03:55]} Bg7 {[%clk 01:33:20]} {[%emt 00:00:22]} 8. d4 {[%clk
01:24:40]} {[%emt 00:00:48]} O-O {[%clk 01:33:45]} {[%emt 00:00:05]} 9. h3
{[%clk 01:24:36]} {[%emt 00:00:33]} g4 {[%clk 01:33:24]} {[%emt 00:00:51]} 10.
hxg4 {[%clk 01:24:59]} {[%emt 00:00:08]} Bxg4 {[%clk 01:33:48]} {[%emt
00:00:05]} 11. d5 {[%clk 01:22:55]} {[%emt 00:02:35]} Ne7 {[%clk 01:34:09]}
{[%emt 00:00:09]} 12. Bd3 {[%clk 01:19:36]} {[%emt 00:03:49]} Ng6 {[%clk
01:33:25]} {[%emt 00:01:13]} 13. Nbd2 {[%clk 01:17:20]} {[%emt 00:02:46]} Nf4
{[%clk 01:27:45]} {[%emt 00:06:11]} 14. Nf1 {[%clk 01:13:29]} {[%emt 00:04:20]}
N6h5 {[%clk 01:10:56]} {[%emt 00:17:19]} 15. N1h2 {[%clk 01:06:32]} {[%emt
00:07:26]} Qd7 {[%clk 01:11:00]} {[%emt 00:00:28]} 16. g3 {[%clk 01:02:58]}
{[%emt 00:04:04]} Nxd3 {[%clk 01:06:02]} {[%emt 00:05:26]} 17. Qxd3 {[%clk
01:02:52]} {[%emt 00:00:37]} Bh3 {[%clk 01:06:18]} {[%emt 00:00:14]} 18. Nh4
{[%clk 01:01:11]} {[%emt 00:02:11]} Nf6 {[%clk 01:02:23]} {[%emt 00:04:25]} 19.
f3 {[%clk 00:54:00]} {[%emt 00:07:41]} Qe7 {[%clk 00:56:52]} {[%emt 00:06:01]}
20. g4 {[%clk 00:48:00]} {[%emt 00:06:31]} h5 {[%clk 00:53:53]} {[%emt
00:03:28]} 21. Nf5 {[%clk 00:42:30]} {[%emt 00:06:00]} Qd7 {[%clk 00:54:04]}
{[%emt 00:00:18]} 22. Qe3 {[%clk 00:40:42]} {[%emt 00:02:19]} Nh7 {[%clk
00:40:13]} {[%emt 00:14:20]} 23. Nxg7 {[%clk 00:39:56]} {[%emt 00:01:17]} Kxg7
{[%clk 00:40:42]} {[%emt 00:00:02]} 24. Qh6+ {[%clk 00:40:14]} {[%emt
00:00:11]} Kh8 {[%clk 00:41:09]} {[%emt 00:00:03]} 25. Qxh5 {[%clk 00:40:32]}
{[%emt 00:00:12]} Rg8 {[%clk 00:41:02]} {[%emt 00:00:37]} 26. Qxh3 {[%clk
00:40:26]} {[%emt 00:00:35]} f5 {[%clk 00:41:30]} {[%emt 00:00:03]} 27. g5
{[%clk 00:39:59]} {[%emt 00:00:57]} Raf8 {[%clk 00:41:33]} {[%emt 00:00:26]} 28.
Kh1 {[%clk 00:39:49]} {[%emt 00:00:40]} Qf7 {[%clk 00:41:15]} {[%emt 00:00:49]}
29. exf5 {[%clk 00:36:58]} {[%emt 00:03:21]} Qxf5 {[%clk 00:41:43]} {[%emt
00:00:02]} 30. Qxf5 {[%clk 00:37:19]} {[%emt 00:00:09]} Rxf5 {[%clk 00:42:10]}
{[%emt 00:00:04]} 31. Rg1 {[%clk 00:37:07]} {[%emt 00:00:42]} Nxg5 {[%clk
00:42:17]} {[%emt 00:00:22]} 32. Bxg5 {[%clk 00:37:25]} {[%emt 00:00:12]} Rgxg5
{[%clk 00:42:38]} {[%emt 00:00:09]} 33. Rxg5 {[%clk 00:37:49]} {[%emt
00:00:06]} Rxg5 {[%clk 00:43:04]} {[%emt 00:00:04]} 34. Rg1 {[%clk 00:38:11]}
{[%emt 00:00:08]} Rh5 {[%clk 00:43:23]} {[%emt 00:00:11]} 35. Rg4 {[%clk
00:38:18]} {[%emt 00:00:23]} c6 {[%clk 00:43:35]} {[%emt 00:00:18]} 36. dxc6
{[%clk 00:38:41]} {[%emt 00:00:07]} bxc6 {[%clk 00:44:04]} {[%emt 00:00:01]} 37.
Rg6 {[%clk 00:38:57]} {[%emt 00:00:14]} d5 {[%clk 00:44:29]} {[%emt 00:00:05]}
38. Rxc6 {[%clk 00:39:19]} {[%emt 00:00:08]} e4 {[%clk 00:44:50]} {[%emt
00:00:09]} 39. fxe4 {[%clk 00:39:45]} {[%emt 00:00:04]} dxe4 {[%clk 00:45:14]}
{[%emt 00:00:06]} 40. Re6 {[%clk 00:40:08]} {[%emt 00:00:07]} Ra5 {[%clk
00:45:24]} {[%emt 00:00:20]} 41. a3 {[%clk 00:40:27]} {[%emt 00:00:11]} Ra4
{[%clk 00:45:51]} {[%emt 00:00:03]} 42. Kg2 {[%clk 00:40:37]} {[%emt 00:00:21]}
Kg7 {[%clk 00:46:15]} {[%emt 00:00:05]} 43. Kf2 {[%clk 00:40:57]} {[%emt
00:00:10]} Kf7 {[%clk 00:46:42]} {[%emt 00:00:04]} 44. Rh6 {[%clk 00:41:05]}
{[%emt 00:00:21]} Ra5 {[%clk 00:46:28]} {[%emt 00:00:40]} 45. Ke3 {[%clk
00:41:04]} {[%emt 00:00:35]} Rb5 {[%emt 00:00:18]} 46. b4 {[%clk 00:41:26]} a5
{[%clk 00:47:14]} {[%emt 00:00:04]} 47. Kxe4 {[%clk 00:41:44]} {[%emt
00:00:12]} axb4 {[%clk 00:47:40]} {[%emt 00:00:04]} 48. cxb4 {[%clk 00:42:06]}
{[%emt 00:00:08]} Rb8 {[%clk 00:47:58]} {[%emt 00:00:12]} 49. Ra6 {[%clk
00:42:20]} {[%emt 00:00:16]} Ke7 {[%clk 00:48:22]} {[%emt 00:00:06]} 50. Kd5
{[%clk 00:42:40]} {[%emt 00:00:10]} Kd7 {[%clk 00:48:41]} {[%emt 00:00:11]} 51.
Ra7+ {[%clk 00:43:05]} {[%emt 00:00:04]} Kc8 {[%clk 00:49:02]} {[%emt
00:00:10]} 52. Kc6 {[%clk 00:43:21]} {[%emt 00:00:14]} Kd8 {[%clk 00:49:19]}
{[%emt 00:00:13]} 53. Rh7 {[%clk 00:43:47]} {[%emt 00:00:03]} Rc8+ {[%clk
00:49:42]} {[%emt 00:00:08]} 54. Kd6 {[%clk 00:44:10]} {[%emt 00:00:07]} 1-0